bitfinex/quotes_SOLUSD_20240930
["timestamp","ask_amount","ask_price","bid_price","bid_amount"]
[1727726304619,6.4325,155.46,155.42,30.210884]
[1727726308322,6.4329,155.45,155.42,23.776884]
[1727726311941,16.2370784,155.48,155.42,23.776884]
[1727726311942,6.4334,155.44,155.42,23.776884]
[1727726313724,32.3166784,155.48,155.42,23.776884]
[1727726313923,6.433,155.45,155.42,23.776884]
[1727726314330,22.6689784,155.48,155.43,7.7200258]
[1727726314524,6.4323,155.47,155.43,7.7200258]
[1727726314732,6.4325,155.46,155.42,30.210884]
[1727726316441,6.4325,155.46,155.43,1.28655987]
[1727726318157,0.7253784,155.48,155.47,50.208984]
[1727726318445,0.7253784,155.48,155.47,62.97336329]
[1727726319247,0.7253784,155.48,155.47,51.49503729]
[1727726319458,6.4279,155.58,155.48,43.776884]
[1727726319750,6.4279,155.58,155.53,6.4295]
[1727726319922,6.4279,155.58,155.54,1.28564681]
[1727726322547,6.6484,155.61,155.54,1.28564681]
[1727726323535,6.4264,155.61,155.55,23.776884]
[1727726323837,16.580223,155.63,155.56,1.28546442]
[1727726324451,6.4267,155.6,155.56,1.28546442]
[1727726325153,6.4275,155.58,155.54,16.0728]
[1727726325349,16.580223,155.63,155.54,16.0728]
[1727726325545,16.580223,155.63,155.55,25.06246498]
[1727726325848,6.4268,155.6,155.55,25.06246498]
[1727726326963,6.4268,155.6,155.55,23.776884]
[1727726327140,6.4268,155.6,155.55,30.205584]
[1727726327333,6.4268,155.6,155.56,1.28545534]
[1727726330060,6.4268,155.6,155.55,30.205584]
[1727726330264,16.580223,155.63,155.55,23.776884]
[1727726330437,6.4284,155.56,155.51,16.0755]
[1727726330637,6.4284,155.56,155.51,22.5058]
[1727726330942,6.4284,155.56,155.52,6.4299]
[1727726331341,16.0665,155.61,155.53,6.4296]
[1727726331342,6.428,155.57,155.53,6.4296]
[1727726332051,6.4276,155.58,155.54,30.206084]
[1727726332968,6.4276,155.58,155.54,23.776884]
[1727726333337,6.4279,155.57,155.54,23.776884]
[1727726334259,6.4279,155.57,155.52,23.776884]
[1727726334440,6.4279,155.57,155.54,25.06250547]
[1727726335964,6.4276,155.58,155.54,31.49150547]
[1727726336163,6.4276,155.58,155.54,30.205884]
[1727726337563,6.4276,155.58,155.53,16.0737]
[1727726337564,6.4282,155.57,155.53,22.503]
[1727726338181,16.0665,155.61,155.49,22.6759]
[1727726338351,6.4284,155.56,155.52,6.4299]
[1727726338753,16.0665,155.61,155.53,1.28578626]
[1727726339069,6.428,155.57,155.53,1.28578626]
[1727726339265,6.4284,155.56,155.53,1.28578626]
[1727726339648,6.4284,155.56,155.53,0.3865]
[1727726340445,6.4288,155.55,155.53,0.3865]
[1727726341072,6.4292,155.54,155.53,0.3865]
[1727726344779,6.5409,155.54,155.53,0.3865]
[1727726344951,0.1117,155.54,155.45,23.1571]
[1727726345152,6.4321,155.47,155.41,28.2106]
[1727726345353,6.4321,155.47,155.41,21.7764]
[1727726346071,6.4347,155.41,155.37,37.866]
[1727726346270,15.9903,155.5,155.37,37.866]
[1727726346465,16.0801,155.48,155.37,37.866]
[1727726346770,16.0801,155.48,155.39,6.4352]
[1727726346771,6.4329,155.45,155.39,6.4352]
[1727726347563,16.0801,155.48,155.4,23.776884]
[1727726347761,6.4333,155.44,155.4,23.776884]
[1727726348070,6.4333,155.44,155.38,6.4358]
[1727726348071,6.4338,155.43,155.38,6.4358]
[1727726348253,6.4338,155.43,155.38,23.776884]
[1727726348453,6.4343,155.42,155.37,44.3022]
[1727726349061,6.4345,155.41,155.35,6.437]
[1727726350158,6.4354,155.39,155.33,44.5304]
[1727726350357,6.4354,155.39,155.33,38.0929]
[1727726350554,6.4341,155.42,155.37,6.4361]
[1727726351158,6.4341,155.42,155.36,16.0915]
[1727726351358,6.4357,155.39,155.33,28.4369]
[1727726351872,6.4357,155.39,155.34,6.4372]
[1727726352550,16.1004,155.43,155.32,16.0948]
[1727726352866,6.4375,155.34,155.29,16.0988]
[1727726353064,6.4375,155.34,155.29,22.5382]
[1727726353676,6.437,155.36,155.3,7.72659714]
[1727726353860,6.437,155.35,155.3,6.439]
[1727726354064,6.4053,155.38,155.29,16.0988]
[1727726354065,6.438,155.33,155.29,16.0988]
[1727726354462,6.438,155.33,155.28,6.4396]
[1727726356573,15.5565,155.37,155.26,16.1017]
[1727726356574,6.4391,155.3,155.26,16.1017]
[1727726356771,16.0917,155.36,155.27,1.28789983]
[1727726357083,6.4381,155.33,155.28,16.0991]
[1727726357575,6.4381,155.33,155.28,22.5388]
[1727726358186,15.5565,155.37,155.27,23.776884]
[1727726358187,6.4387,155.31,155.27,23.776884]
[1727726359186,6.4384,155.32,155.27,6.4403]
[1727726359567,15.5565,155.37,155.28,1.28784092]
[1727726359879,15.5565,155.37,155.29,22.5374]
[1727726360057,6.4379,155.33,155.29,22.5374]
[1727726360257,6.4379,155.33,155.29,16.098]
[1727726361077,6.4383,155.32,155.27,6.4403]
[1727726361389,6.4387,155.31,155.27,6.4403]
[1727726361756,6.4387,155.31,155.26,39.878384]
[1727726362056,6.4386,155.32,155.28,6.4398]
[1727726362255,0.1115,155.33,155.26,16.1015]
[1727726362458,6.4392,155.3,155.26,16.1015]
[1727726363166,6.4398,155.29,155.24,6.4415]
[1727726365197,6.4398,155.29,155.25,1.28808164]
[1727726365386,6.4398,155.29,155.25,6.4412]
[1727726365564,6.4408,155.26,155.21,6.4425]
[1727726365966,6.4412,155.25,155.21,6.4425]
[1727726366468,6.4412,155.25,155.2,22.5509]
[1727726367089,16.227,155.29,155.2,22.5509]
[1727726367273,16.227,155.29,155.22,16.1056]
[1727726367480,16.227,155.29,155.18,50.12939977]
[1727726367681,6.44,155.28,155.24,22.5451]
[1727726368387,6.44,155.28,155.24,16.1036]
[1727726368794,16.227,155.29,155.18,32.2187]
[1727726368980,16.227,155.29,155.22,6.4421]
[1727726368981,6.4404,155.27,155.22,6.4421]
[1727726370383,16.227,155.29,155.19,6.4436]
[1727726370384,6.4419,155.24,155.19,6.4436]
[1727726370565,16.227,155.29,155.2,33.50409593]
[1727726370772,16.227,155.29,155.24,16.1036]
[1727726370978,22.6669,155.29,155.24,22.5451]
[1727726371177,6.4399,155.28,155.24,22.5451]
[1727726371682,16.227,155.29,155.24,22.5451]
[1727726371898,16.227,155.29,155.26,6.4406]
[1727726372063,6.4388,155.31,155.27,6.4403]
[1727726372266,22.0577,155.33,155.28,6.4396]
[1727726372462,6.4381,155.33,155.28,6.4396]
[1727726372688,6.4375,155.34,155.29,7.72732075]
[1727726374187,22.0007,155.37,155.27,30.217084]
[1727726374188,6.4384,155.32,155.27,30.217084]
[1727726374367,6.4379,155.33,155.28,6.4399]
[1727726375375,22.0007,155.37,155.27,6.4403]
[1727726375376,6.4383,155.32,155.27,6.4403]
[1727726376592,6.4391,155.3,155.26,16.1013]
[1727726376787,6.4396,155.29,155.24,6.4415]
[1727726376993,23.776884,155.36,155.23,22.547]
[1727726376994,6.44,155.28,155.23,22.547]
[1727726377791,6.4396,155.29,155.24,7.72964271]
[1727726378369,6.4403,155.28,155.24,1.28814271]
[1727726378573,6.5497,155.28,155.24,7.7297377]
[1727726378780,6.5497,155.28,155.23,22.5471]
[1727726378988,6.4404,155.27,155.23,16.1051]
[1727726381091,6.4415,155.25,155.2,22.5507]
[1727726381287,6.4417,155.24,155.2,16.1078]
[1727726381480,6.4411,155.26,155.2,16.1078]
[1727726381679,6.4413,155.25,155.2,16.1078]
[1727726381895,0.1094,155.28,155.2,16.1078]
[1727726381896,6.4417,155.24,155.2,16.1078]
[1727726382072,6.4421,155.23,155.18,6.444]
[1727726382293,23.776884,155.27,155.17,22.5555]
[1727726382478,6.4429,155.21,155.17,22.5555]
[1727726382806,6.4429,155.21,155.17,16.111]
[1727726383903,6.4429,155.21,155.17,17.39976008]
[1727726384287,6.4429,155.21,155.17,16.111]
[1727726385229,6.4425,155.22,155.17,22.5555]
[1727726385503,16.6046,155.23,155.17,16.111]
[1727726385697,16.6046,155.23,155.12,22.1131]
[1727726385876,32.7103,155.23,155.14,36.1141]
[1727726386073,6.444,155.19,155.14,22.5598]
[1727726386505,6.444,155.19,155.15,6.4453]
[1727726387086,32.7103,155.23,155.14,16.1141]
[1727726387413,6.4437,155.19,155.15,23.776884]
[1727726387701,6.4433,155.2,155.15,30.221784]
[1727726387900,32.7103,155.23,155.17,16.111]
[1727726387901,6.4428,155.21,155.17,16.111]
[1727726388084,6.4433,155.2,155.15,30.222084]
[1727726388291,6.4424,155.22,155.17,6.4444]
[1727726388608,6.443,155.21,155.16,6.4448]
[1727726388791,16.6046,155.23,155.15,30.222184]
[1727726388995,6.4438,155.19,155.15,30.222184]
[1727726389199,6.4438,155.19,155.15,23.776884]
[1727726389805,6.4438,155.19,155.15,30.222084]
[1727726389976,6.4432,155.21,155.15,30.222084]
[1727726390180,6.4438,155.19,155.15,30.222084]
[1727726390405,6.4441,155.18,155.14,22.5598]
[1727726390892,6.4438,155.19,155.15,6.4452]
[1727726391511,6.4434,155.2,155.15,23.776884]
[1727726391699,6.4434,155.2,155.15,30.222084]
[1727726393094,6.4434,155.2,155.13,26.446]
[1727726393095,6.4447,155.17,155.13,26.446]
[1727726393297,0.1086,155.2,155.13,43.776884]
[1727726393593,0.1086,155.2,155.16,23.776884]
[1727726393794,0.1086,155.2,155.17,1.28875715]
[1727726393994,0.1086,155.2,155.17,23.84385715]
[1727726394195,0.1086,155.2,155.19,30.220584]
[1727726394397,0.1086,155.2,155.19,31.50895902]
[1727726394603,0.1086,155.2,155.19,30.220584]
[1727726394904,0.1086,155.2,155.19,31.50893891]
[1727726395087,0.1086,155.2,155.19,51.50893891]
[1727726395292,0.1086,155.2,155.19,58.04013891]
[1727726395519,0.1086,155.2,155.19,56.751784]
[1727726396383,16.0923,155.36,155.19,56.751784]
[1727726396384,22.3326,155.36,155.29,16.0986]
[1727726396588,6.4372,155.35,155.29,16.0986]
[1727726396894,6.4372,155.35,155.3,23.776884]
[1727726397615,16.0809,155.36,155.29,16.0986]
[1727726397906,6.4379,155.33,155.29,16.0986]
[1727726398120,6.4374,155.35,155.29,22.5381]
[1727726398413,16.0809,155.36,155.3,25.0645658]
[1727726398715,16.0809,155.36,155.31,6.4383]
[1727726398916,16.0809,155.36,155.29,22.5377]
[1727726399210,6.4375,155.34,155.29,22.5377]
[1727726399516,16.0809,155.36,155.32,6.4379]
[1727726399700,16.0809,155.36,155.32,7.72535163]
[1727726399903,22.8862,155.4,155.34,6.4373]
[1727726400090,23.0163,155.4,155.34,6.4373]
[1727726400994,6.435,155.4,155.34,6.4373]
[1727726401689,38.84,155.44,155.33,25.064124]
[1727726401917,38.84,155.44,155.33,23.776884]
[1727726402814,6.4366,155.36,155.33,23.776884]
[1727726403108,6.4362,155.37,155.32,16.0956]
[1727726403313,16.0863,155.42,155.3,6.4391]
[1727726403614,22.7557,155.44,155.29,32.1823]
[1727726403615,6.4377,155.34,155.29,16.0987]
[1727726403920,6.4374,155.34,155.33,0.1138]
[1727726404715,6.0328,155.37,155.33,0.1138]
[1727726404716,6.4371,155.35,155.33,0.1138]
[1727726405212,6.4374,155.34,155.33,0.1138]
[1727726406395,6.4371,155.35,155.33,0.1138]
[1727726407611,6.4367,155.36,155.33,0.1138]
[1727726407816,21.4918,155.39,155.34,6.4372]
[1727726408042,38.88794296,155.45,155.34,6.4372]
[1727726408043,15.0724,155.43,155.35,1.28737151]
[1727726408189,6.72184296,155.45,155.35,1.28737151]
[1727726408190,6.72184296,155.45,155.4,6.4349]
[1727726408394,22.5832,155.49,155.34,39.371784]
[1727726408395,22.1788,155.49,155.36,17.91069977]
[1727726408596,22.1788,155.49,155.39,6.4351]
[1727726408597,6.4324,155.47,155.39,6.4351]
[1727726408817,6.4328,155.46,155.38,6.4356]
[1727726408994,6.4332,155.45,155.38,30.212484]
[1727726409189,6.4331,155.45,155.38,23.776884]
[1727726409500,6.4331,155.45,155.37,23.776884]
[1727726409706,22.1788,155.49,155.38,1.28696501]
[1727726410005,6.4322,155.47,155.38,1.28696501]
[1727726411220,6.4322,155.47,155.39,6.4352]
[1727726411420,6.4331,155.45,155.37,30.212784]
[1727726411713,6.4331,155.45,155.38,1.28695815]
[1727726411910,6.4335,155.44,155.37,30.212784]
[1727726412115,6.4338,155.43,155.36,16.0908]
[1727726412305,23.776884,155.48,155.36,16.0908]
[1727726412508,20.0,155.47,155.32,20.0]
[1727726412719,6.4355,155.39,155.31,22.5344]
[1727726412894,23.776884,155.39,155.27,6.2538]
[1727726413099,6.4371,155.35,155.27,6.4401]
[1727726414127,6.4371,155.35,155.28,1.28777789]
[1727726414330,6.4365,155.37,155.28,1.28777789]
[1727726414713,6.4367,155.36,155.28,6.4397]
[1727726415036,6.4367,155.36,155.29,6.4394]
[1727726417126,15.1423,155.38,155.32,6.4381]
[1727726417127,21.5784,155.38,155.32,6.4381]
[1727726417331,6.4363,155.37,155.31,6.4385]
[1727726417512,6.4367,155.36,155.3,6.4391]
[1727726417915,6.4372,155.35,155.29,22.5379]
[1727726418219,6.4374,155.34,155.29,16.0985]
[1727726419827,6.4374,155.34,155.29,22.538]
[1727726420225,6.4371,155.35,155.3,6.439]
[1727726421325,15.1423,155.38,155.31,6.4386]
[1727726421536,6.4362,155.37,155.32,7.72562323]
[1727726421737,6.4362,155.37,155.32,6.4381]
[1727726422643,6.4366,155.36,155.31,6.4386]
[1727726423317,15.1423,155.38,155.32,1.28753575]
[1727726423624,6.4362,155.37,155.32,7.72543575]
[1727726424234,22.6519,155.4,155.28,16.0997]
[1727726424514,6.4374,155.34,155.25,16.1027]
[1727726424713,6.4374,155.34,155.26,6.4407]
[1727726425015,6.4374,155.34,155.25,22.5438]
[1727726425933,6.4374,155.34,155.26,6.4407]
[1727726427915,6.4374,155.34,155.27,1.28791614]
[1727726428117,6.4374,155.34,155.27,7.72811614]
[1727726429244,6.4374,155.34,155.27,6.4402]
[1727726429418,6.4374,155.34,155.28,1.28791645]
[1727726429620,6.4374,155.35,155.3,6.4389]
[1727726429829,6.4374,155.34,155.29,22.5377]
[1727726430721,6.4374,155.34,155.29,16.0983]
[1727726431131,6.4374,155.34,155.26,22.542]
[1727726431444,6.4374,155.34,155.26,16.1015]
[1727726432117,6.4374,155.34,155.26,22.5421]
[1727726432529,23.776884,155.34,155.26,16.1015]
[1727726432729,23.776884,155.34,155.25,6.441]
[1727726432730,6.4396,155.29,155.25,6.441]
[1727726433034,23.776884,155.33,155.23,22.7677]
[1727726433240,6.4404,155.27,155.23,22.7677]
[1727726434225,16.0964,155.32,155.24,7.72948433]
[1727726434226,6.4399,155.29,155.24,7.72948433]
[1727726434445,6.4399,155.29,155.25,6.4411]
[1727726435322,6.4399,155.29,155.24,6.4415]
[1727726435556,6.4399,155.29,155.23,22.7677]
[1727726435856,6.4403,155.28,155.23,22.7677]
[1727726436030,6.4403,155.28,155.23,29.2097]
[1727726436841,16.0964,155.32,155.23,29.2097]
[1727726436842,6.4405,155.27,155.23,16.1045]
[1727726437043,6.4412,155.26,155.21,6.4428]
[1727726437249,6.4413,155.25,155.21,6.4428]
[1727726437460,6.4413,155.25,155.2,39.2032]
[1727726437647,6.4416,155.24,155.2,39.2032]
[1727726438936,6.4412,155.25,155.2,39.2032]
[1727726439255,16.0984,155.3,155.2,39.2032]
[1727726439256,16.0984,155.3,155.21,1.28841395]
[1727726439446,6.4408,155.26,155.21,7.73121395]
[1727726440255,16.0984,155.3,155.21,7.73121395]
[1727726440256,6.4413,155.25,155.21,6.4428]
[1727726440633,6.4416,155.24,155.2,22.5514]
[1727726441354,6.4421,155.23,155.19,6.4436]
[1727726442834,6.4421,155.23,155.18,6.0499]
[1727726442835,6.4421,155.23,155.18,6.444]
[1727726443137,6.4424,155.22,155.18,6.444]
[1727726443339,6.4421,155.23,155.18,6.444]
[1727726444066,6.4421,155.23,155.19,6.4435]
[1727726445366,16.1004,155.28,155.15,15.4851]
[1727726445545,16.1004,155.28,155.19,20.0]
[1727726445546,6.4402,155.28,155.19,20.0]
[1727726445882,6.4402,155.28,155.24,6.4415]
[1727726446164,22.8946,155.29,155.25,6.4411]
[1727726447052,6.4392,155.3,155.26,6.4407]
[1727726447451,6.2548,155.32,155.27,6.44]
[1727726447452,6.4386,155.32,155.27,6.44]
[1727726447646,6.4386,155.32,155.26,1.28792988]
[1727726448042,6.4386,155.32,155.27,6.4402]
[1727726448574,6.4388,155.31,155.27,6.4402]
[1727726449181,6.4384,155.32,155.27,6.4402]
[1727726449458,15.7921,155.41,155.36,6.4366]
[1727726449971,15.7921,155.41,155.3,65.45547702]
[1727726449972,15.7921,155.41,155.37,6.4361]
[1727726450169,6.2183,155.44,155.35,16.0921]
[1727726450463,6.2183,155.44,155.38,6.4357]
[1727726451839,6.2183,155.44,155.35,16.0921]
[1727726452166,6.2183,155.44,155.33,6.4377]
[1727726452542,23.776884,155.43,155.33,6.4377]
[1727726453154,6.435,155.4,155.33,6.4377]
[1727726453560,6.4345,155.42,155.33,6.4377]
[1727726453871,23.776884,155.43,155.33,6.4377]
[1727726454073,6.4346,155.41,155.33,6.4377]
[1727726454569,6.4346,155.41,155.34,6.4374]
[1727726455371,23.776884,155.4,155.34,6.4374]
[1727726455743,23.776884,155.4,155.31,16.0965]
[1727726456068,30.211984,155.4,155.33,6.4378]
[1727726456750,30.211984,155.4,155.34,6.4374]
[1727726459353,23.776884,155.4,155.32,6.4379]
[1727726459556,23.776884,155.4,155.31,22.5352]
[1727726459768,6.4364,155.37,155.31,22.5352]
[1727726460269,6.4366,155.36,155.31,16.0965]
[1727726461286,6.437,155.35,155.3,6.4391]
[1727726463353,30.213484,155.36,155.31,6.4387]
[1727726464868,16.4939,155.37,155.3,16.0969]
[1727726465083,22.11035235,155.41,155.27,20.0]
[1727726465250,6.4354,155.39,155.34,6.4374]
[1727726466279,15.3958,155.41,155.33,6.4378]
[1727726466280,6.4358,155.38,155.33,6.4378]
[1727726466778,6.4362,155.37,155.33,6.4378]
[1727726466948,6.4362,155.37,155.32,22.5334]
[1727726467151,6.4367,155.36,155.32,16.0952]
[1727726467360,6.4367,155.36,155.31,6.4386]
[1727726467361,6.437,155.35,155.31,6.4386]
[1727726467783,6.4367,155.36,155.31,6.4386]
[1727726468463,6.4371,155.35,155.31,6.4386]
[1727726468870,6.4371,155.35,155.3,6.439]
[1727726469667,39.864984,155.4,155.3,6.439]
[1727726469871,39.864984,155.4,155.29,16.0983]
[1727726469872,23.776884,155.37,155.29,16.0983]
[1727726470077,6.438,155.33,155.29,16.0983]
[1727726470266,6.438,155.33,155.29,22.5378]
[1727726470450,6.438,155.33,155.29,16.0983]
[1727726471078,16.0899,155.38,155.29,22.5377]
[1727726471266,6.4374,155.34,155.29,22.5377]
[1727726472785,6.4367,155.36,155.31,6.4384]
[1727726475267,6.4359,155.38,155.33,6.4376]
[1727726475589,15.3958,155.41,155.34,6.4374]
[1727726475883,6.4355,155.39,155.34,6.4374]
[1727726476480,6.4355,155.39,155.35,6.4369]
[1727726476688,22.3024,155.44,155.36,6.4365]
[1727726476993,6.4349,155.41,155.36,6.4365]
[1727726477366,15.3896,155.45,155.36,1.28727255]
[1727726477689,15.3896,155.45,155.39,6.4353]
[1727726477690,6.4334,155.44,155.39,6.4353]
[1727726477874,6.4338,155.43,155.38,6.4357]
[1727726478384,6.4342,155.42,155.38,6.4357]
[1727726480072,6.4345,155.41,155.37,22.5262]
[1727726481279,6.4342,155.42,155.37,22.5262]
[1727726486987,6.4342,155.42,155.38,6.4354]
[1727726487198,12.93707298,155.48,155.38,1.28707122]
[1727726487403,6.4325,155.46,155.42,6.4339]
[1727726487867,6.4325,155.46,155.41,16.0861]
[1727726488067,6.4325,155.46,155.42,6.4338]
[1727726488770,16.0778,155.5,155.42,6.4338]
[1727726488771,16.0778,155.5,155.43,6.4334]
[1727726488975,6.4318,155.48,155.43,6.4334]
[1727726491290,6.4321,155.47,155.43,6.4334]
[1727726491506,23.776884,155.49,155.41,16.0861]
[1727726491715,6.4332,155.45,155.41,16.0861]
[1727726493300,6.4338,155.43,155.39,6.0604]
[1727726493482,6.4338,155.43,155.39,12.4956]
[1727726494419,16.0796,155.48,155.36,6.4366]
[1727726494420,6.435,155.4,155.36,6.4366]
[1727726494697,6.4347,155.41,155.36,6.4366]
[1727726495586,6.4347,155.41,155.37,6.4361]
[1727726496901,6.435,155.4,155.36,6.4366]
[1727726498303,23.776884,155.45,155.37,1.28711616]
[1727726499096,6.4342,155.42,155.38,6.4358]
[1727726500005,6.4345,155.41,155.37,7.72321616]
[1727726500201,6.4345,155.41,155.37,6.4361]
[1727726502786,6.4345,155.41,155.36,1.2871033]
[1727726502787,23.776884,155.45,155.36,1.2871033]
[1727726502990,6.4339,155.43,155.39,6.4351]
[1727726503191,34.6374,155.5,155.39,16.0883]
[1727726503395,6.4332,155.45,155.41,6.4345]
[1727726506006,6.4322,155.47,155.43,6.4335]
[1727726506585,29.04706388,155.52,155.43,16.0838]
[1727726506805,15.4258,155.54,155.44,1.28656439]
[1727726507102,6.4299,155.53,155.49,6.4311]
[1727726507502,6.4299,155.53,155.47,1.28619632]
[1727726507805,6.4299,155.53,155.48,6.4315]
[1727726508308,38.21535555,155.58,155.5,6.4305]
[1727726508602,6.4291,155.55,155.5,6.4305]
[1727726509392,6.4284,155.56,155.52,6.43]
[1727726511107,6.4284,155.56,155.51,6.4303]
[1727726511504,16.0663,155.61,155.53,6.4295]
[1727726512400,6.4276,155.58,155.54,6.4292]
[1727726513419,6.4276,155.58,155.53,16.0735]
[1727726513605,6.4276,155.58,155.53,22.503]
[1727726514112,23.776884,155.6,155.53,22.503]
[1727726514314,6.4284,155.56,155.52,6.4299]
[1727726514493,6.4284,155.56,155.51,6.4303]
[1727726515517,6.4284,155.56,155.51,7.71619665]
[1727726515920,6.4284,155.56,155.51,1.28589665]
[1727726516129,6.4284,155.56,155.52,6.4299]
[1727726517313,6.4284,155.56,155.51,7.71619665]
[1727726517518,6.4284,155.56,155.51,6.4303]
[1727726519112,6.4284,155.56,155.51,7.71619231]
[1727726521600,6.4282,155.57,155.53,6.4295]
[1727726521813,6.4284,155.56,155.52,6.4299]
[1727726522014,16.0663,155.61,155.5,31.7362]
[1727726522015,16.0663,155.61,155.51,1.28582716]
[1727726522217,16.0663,155.61,155.54,6.4292]
[1727726522611,6.4274,155.59,155.54,6.4292]
[1727726523622,6.4276,155.58,155.54,6.4292]
[1727726523822,23.776884,155.6,155.52,16.0747]
[1727726523823,6.4283,155.57,155.52,16.0747]
[1727726524005,6.4283,155.57,155.52,22.5044]
[1727726524515,23.776884,155.6,155.52,16.0747]
[1727726524824,6.4276,155.58,155.54,6.4291]
[1727726525117,16.0663,155.61,155.55,6.4287]
[1727726525118,6.4274,155.59,155.55,6.4287]
[1727726525927,6.4268,155.6,155.56,6.4283]
[1727726527505,23.776884,155.62,155.55,6.0608]
[1727726527711,23.776884,155.62,155.55,12.4892]
[1727726527918,6.4268,155.6,155.55,12.4892]
[1727726528135,6.4268,155.6,155.56,1.28550852]
[1727726528624,23.776884,155.62,155.56,1.28550852]
[1727726528824,6.4264,155.61,155.57,6.4276]
[1727726529028,6.4264,155.61,155.58,1.28539653]
[1727726529200,6.4264,155.61,155.57,7.71297455]
[1727726530932,1.226123,155.63,155.56,16.0703]
[1727726531105,6.4267,155.6,155.56,16.0703]
[1727726531516,6.4267,155.6,155.56,22.4986]
[1727726531822,6.4267,155.6,155.56,23.78412467]
[1727726533814,6.4264,155.61,155.57,6.4278]
[1727726534034,6.4268,155.6,155.56,22.4986]
[1727726534513,1.226123,155.63,155.56,16.0703]
[1727726534718,6.4271,155.59,155.56,16.0703]
[1727726535529,6.4268,155.6,155.56,23.78412246]
[1727726537119,6.4264,155.61,155.56,23.78412246]
[1727726538144,6.4264,155.61,155.56,17.35582246]
[1727726538314,6.4264,155.61,155.57,6.4279]
[1727726538522,6.4262,155.62,155.58,6.4275]
[1727726539228,1.226123,155.63,155.58,1.28527437]
[1727726539439,1.226123,155.63,155.58,16.0686]
[1727726539630,6.4259,155.62,155.58,22.496]
[1727726539934,7.651723,155.63,155.58,22.496]
[1727726540322,7.651723,155.63,155.59,6.427]
[1727726541016,1.226123,155.63,155.6,7.71174766]
[1727726541729,1.226123,155.63,155.6,6.4266]
[1727726543344,1.226123,155.63,155.61,1.28508334]
[1727726544025,1.226123,155.63,155.6,6.4266]
[1727726545042,1.226123,155.63,155.62,43.0047]
[1727726545340,1.226123,155.63,155.62,73.207484]
[1727726546026,0.2605059,155.65,155.62,66.781584]
[1727726546232,0.2605059,155.65,155.64,68.09079591]
[1727726546417,21.98075038,155.76,155.64,68.09079591]
[1727726546418,6.4201,155.76,155.7,6.4223]
[1727726546848,6.4201,155.76,155.71,1.28424594]
[1727726548139,6.4201,155.76,155.7,6.4223]
[1727726548449,23.776884,155.78,155.69,28.8335]
[1727726549232,6.4205,155.75,155.69,28.8335]
[1727726549439,0.8476434,155.79,155.7,1.28427806]
[1727726549656,0.8476434,155.79,155.74,6.4209]
[1727726549943,0.8476434,155.79,155.75,7.70434517]
[1727726550435,0.8476434,155.79,155.75,6.4204]
[1727726551844,0.8476434,155.79,155.76,7.70385134]
[1727726552046,0.8476434,155.79,155.76,6.4201]
[1727726552221,0.8476434,155.79,155.74,22.4719]
[1727726553731,6.4193,155.78,155.74,16.0514]
[1727726553928,0.8476434,155.79,155.72,21.7805]
[1727726553929,6.4198,155.77,155.72,21.7805]
[1727726554129,6.4198,155.77,155.72,15.3591]
[1727726554333,1.7472814,155.79,155.72,15.3591]
[1727726554534,6.4201,155.76,155.72,15.3591]
[1727726554740,6.4201,155.76,155.71,16.0553]
[1727726555246,0.8476434,155.79,155.69,6.3536]
[1727726555437,6.4206,155.75,155.69,12.7765]
[1727726555742,0.8476434,155.79,155.69,6.3536]
[1727726555743,6.4222,155.71,155.69,6.3536]
[1727726556352,6.4217,155.72,155.69,6.3536]